[Event "94th Paris-ch  2019"]
[Site "Paris"]
[Date "2019.07.14"]
[Round "9.17"]
[White "Smith, Matthieu"]
[Black "Jeet, Jain"]
[Result "0-1"]
[ECO "D05"]
[WhiteElo "2208"]
[BlackElo "2258"]
[Annotator "NA"]
[PlyCount "164"]
[EventDate "2019.07.07"]
[EventType "swiss"]
[EventCountry "FRA"]
[SourceTitle "playchess.com"]
[Source "ChessBase"]
[SourceQuality "1"]
[TimeControl "5400+30"]

1. d4 {[%emt 0:25:35]} d5 {[%emt 0:00:00]} 2. Nf3 {[%emt 0:00:13]} Nf6 {[%emt 0:00:07]} 3. e3 {[%emt 0:00:06]} e6 {[%emt 0:00:39]} 4. Bd3 {[%emt 0:00:07]} c5 {[%emt 0:00:20]} 5. c3 {[%emt 0:00:04]} Nc6 {[%emt 0:00:08]} 6. Nbd2 {[%emt 0:00:23]} Bd6 {[%emt 0:00:14]} 7. O-O {[%emt 0:00:07]} O-O {[%emt 0:00:08]} 8. dxc5 {[%emt 0:00:03]} Bxc5 {[%emt 0:00:08]} 9. e4 {[%emt 0:00:07]} Qc7 {[%emt 0:00:57]} 10. Qe2 {[%emt 0:01:20]} Be7 {[%emt 0:02:10]} 11. e5 {[%emt 0:03:30]} Nd7 {[%emt 0:00:42]} 12. Re1 {[%emt 0:00:19]} f5 {[%emt 0:07:04]} 13. exf6 {[%emt 0:03:17]} Nxf6 {[%emt 0:00:09]} 14. c4 {[%emt 0:05:47]} Bc5 {[%emt 0:08:44]} 15. h3 {[%emt 0:01:19]} Kh8 {[%emt 0:00:49]} 16. a3 {[%emt 0:02:26]} a5 {[%emt 0:01:29]} 17. b3 {[%emt 0:04:41]} e5 {[%emt 0:00:40]} 18. cxd5 {[%emt 0:01:05]} Nxd5 {[%emt 0:02:07]} 19. Qe4 {[%emt 0:07:04]} Nf6 {[%emt 0:00:58]} 20. Qh4 {[%emt 0:00:13]} Be6 {[%emt 0:06:37]} 21. Bb2 {[%emt 0:08:15]} Rad8 {[%emt 0:04:24]} 22. Bxe5 {[%emt 0:19:34]} Nxe5 {[%emt 0:09:01]} 23. Nxe5 {[%emt 0:00:35]} Rd4 {[%emt 0:02:21]} 24. Qg3 {[%emt 0:04:40]} Bd6 {[%emt 0:03:59]} 25. Ndc4 {[%emt 0:08:34]} Bxc4 {[%emt 0:00:31]} 26. Bxc4 {[%emt 0:00:09]} g6 {[%emt 0:15:00]} 27. Qe3 {[%emt 0:01:40]} Rh4 {[%emt 0:06:20]} 28. Nf3 {[%emt 0:00:24]} Rf4 {[%emt 0:01:04]} 29. a4 {[%emt 0:02:15]} Bc5 {[%emt 0:00:30]} 30. Qe5 {[%emt 0:00:27]} Qxe5 {[%emt 0:02:11]} 31. Rxe5 {[%emt 0:00:14]} Ne4 {[%emt 0:00:45]} 32. Rf1 {[%emt 0:00:37]} b6 {[%emt 0:00:09]} 33. Bd3 {[%emt 0:00:47]} Nd6 {[%emt 0:01:26]} 34. Rfe1 {[%emt 0:00:26]} Bb4 {[%emt 0:04:08]} 35. R1e2 {[%emt 0:00:23]} Rc8 {[%emt 0:00:07]} 36. Rc2 {[%emt 0:00:24]} Bc5 {[%emt 0:00:14]} 37. Rd5 {[%emt 0:00:40]} Ne8 {[%emt 0:00:46]} 38. Re2 {[%emt 0:00:31]} Ng7 {[%emt 0:00:25]} 39. Bc4 {[%emt 0:00:34]} Rcf8 {[%emt 0:00:20]} 40. Rde5 {[%emt 0:00:22]} Rd8 {[%emt 0:00:43]} 41. Rd5 {[%emt 0:00:16]} Rdf8 {[%emt 0:00:01]} 42. Rd7 {[%emt 0:00:18]} Nf5 {[%emt 0:00:28]} 43. Red2 {[%emt 0:00:57]} Ne7 {[%emt 0:03:31]} 44. Rd8 {[%emt 0:00:15]} Rxd8 {[%emt 0:00:21]} 45. Rxd8+ {[%emt 0:00:01]} Kg7 {[%emt 0:00:01]} 46. Rd3 {[%emt 0:00:33]} h6 {[%emt 0:00:10]} 47. g3 {[%emt 0:00:10]} Rf8 {[%emt 0:01:06]} 48. Kg2 {[%emt 0:00:06]} Nf5 {[%emt 0:00:21]} 49. h4 {[%emt 0:00:22]} Nd6 {[%emt 0:00:12]} 50. Bd5 {[%emt 0:01:29]} Re8 {[%emt 0:00:20]} 51. Kf1 {[%emt 0:00:35]} Kf6 {[%emt 0:00:16]} 52. Nd2 {[%emt 0:01:05]} g5 {[%emt 0:00:57]} 53. hxg5+ {[%emt 0:00:20]} hxg5 {[%emt 0:00:08]} 54. Bf3 {[%emt 0:00:15]} Bb4 {[%emt 0:00:17]} 55. Kg2 {[%emt 0:00:43]} Rc8 {[%emt 0:00:31]} 56. Nf1 {[%emt 0:00:37]} Nf5 {[%emt 0:00:21]} 57. Bg4 {[%emt 0:00:26]} Rc5 {[%emt 0:01:40]} 58. Rf3 {[%emt 0:00:06]} Kg6 {[%emt 0:00:08]} 59. Bxf5+ {[%emt 0:00:09]} Rxf5 {[%emt 0:00:01]} 60. Rxf5 {[%emt 0:00:07]} Kxf5 {[%emt 0:00:04]} 61. Kf3 {[%emt 0:00:30]} Ke5 {[%emt 0:00:34]} 62. Kg4 {[%emt 0:01:22]} Be7 {[%emt 0:00:21]} 63. Ne3 {[%emt 0:00:40]} Ke4 {[%emt 0:00:05]} 64. Nc4 {[%emt 0:00:18]} Bd8 {[%emt 0:00:08]} 65. f3+ {[%emt 0:00:53]} Kd4 {[%emt 0:00:24]} 66. Nd6 {[%emt 0:00:30]} Kc3 {[%emt 0:00:10]} 67. Nf7 {[%emt 0:00:31]} Be7 {[%emt 0:00:19]} 68. Nxg5 {[%emt 0:00:05]} Kxb3 {[%emt 0:00:02]} 69. f4 {[%emt 0:00:34]} Kxa4 {[%emt 0:00:02]} 70. Kf5 {[%emt 0:00:34]} Kb3 {[%emt 0:00:06]} 71. Nf3 {[%emt 0:00:43]} a4 {[%emt 0:00:31]} 72. Nd4+ {[%emt 0:00:26]} Kc4 {[%emt 0:00:38]} 73. Nc2 {[%emt 0:00:44]} Kc3 {[%emt 0:00:04]} 74. Na1 {[%emt 0:00:28]} Kb2 {[%emt 0:04:38]} 75. Ke6 {[%emt 0:00:10]} Bb4 {[%emt 0:00:04]} 76. g4 {[%emt 0:00:47]} Kxa1 {[%emt 0:00:02]} 77. g5 {[%emt 0:00:18]} a3 {[%emt 0:00:07]} 78. g6 {[%emt 0:00:43]} Bc3 {[%emt 0:00:16]} 79. f5 {[%emt 0:00:05]} a2 {[%emt 0:00:05]} 80. f6 {[%emt 0:00:29]} Bxf6 {[%emt 0:00:02]} 81. Kxf6 {[%emt 0:00:10]} Kb1 {[%emt 0:00:02]} 82. g7 {[%emt 0:00:23]} a1=Q+ {[%emt 0:00:03]} 0-1

[Event "94th Paris-ch  2019"]
[Site "Paris"]
[Date "2019.07.14"]
[Round "9.18"]
[White "Gervasio, Ricardo"]
[Black "Douriet Duany, Alexis"]
[Result "1-0"]
[ECO "D00"]
[WhiteElo "2223"]
[BlackElo "2247"]
[Annotator "NA"]
[PlyCount "61"]
[EventDate "2019.07.07"]
[EventType "swiss"]
[EventCountry "FRA"]
[SourceTitle "playchess.com"]
[Source "ChessBase"]
[SourceQuality "1"]
[TimeControl "5400+30"]

1. Nf3 {[%emt 0:01:28]} Nf6 {[%emt 0:04:27]} 2. d4 {[%emt 0:00:14]} g6 {[%emt 0:00:05]} 3. Nc3 {[%emt 0:00:12]} d5 {[%emt 0:00:30]} 4. Bf4 {[%emt 0:00:30]} Bg7 {[%emt 0:00:20]} 5. e3 {[%emt 0:00:08]} O-O {[%emt 0:00:42]} 6. h3 {[%emt 0:00:05]} c5 {[%emt 0:00:41]} 7. Nb5 {[%emt 0:00:11]} Na6 {[%emt 0:02:29]} 8. c3 {[%emt 0:00:11]} Bd7 {[%emt 0:00:41]} 9. a4 {[%emt 0:00:06]} c4 {[%emt 0:00:27]} 10. b3 {[%emt 0:03:48]} Qa5 {[%emt 0:13:41]} 11. Nd2 {[%emt 0:00:59]} cxb3 {[%emt 0:01:25]} 12. Nxb3 {[%emt 0:00:34]} Qb6 {[%emt 0:02:51]} 13. a5 {[%emt 0:18:59]} Qd8 {[%emt 0:13:29]} 14. Nd2 {[%emt 0:09:32]} Ne8 {[%emt 0:12:45]} 15. Qb3 {[%emt 0:01:32]} Bc6 {[%emt 0:00:13]} 16. Bd3 {[%emt 0:00:44]} Nac7 {[%emt 0:02:53]} 17. Nxc7 {[%emt 0:01:00]} Nxc7 {[%emt 0:00:08]} 18. O-O {[%emt 0:00:03]} Rc8 {[%emt 0:03:34]} 19. Rfc1 {[%emt 0:05:01]} Qd7 {[%emt 0:00:42]} 20. Rab1 {[%emt 0:00:58]} a6 {[%emt 0:00:55]} 21. Bg3 {[%emt 0:09:29]} Rfe8 {[%emt 0:16:08]} 22. c4 {[%emt 0:03:38]} e5 {[%emt 0:01:50]} 23. cxd5 {[%emt 0:04:29]} Bxd5 {[%emt 0:04:50]} 24. Bc4 {[%emt 0:01:59]} Bc6 {[%emt 0:03:23]} 25. Nf3 {[%emt 0:05:38]} Bxf3 {[%emt 0:02:15]} 26. gxf3 {[%emt 0:00:13]} exd4 {[%emt 0:02:42]} 27. exd4 {[%emt 0:06:17]} Nb5 {[%emt 0:04:16]} 28. Bxb5 {[%emt 0:01:06]} Rxc1+ {[%emt 0:00:12]} 29. Rxc1 {[%emt 0:00:07]} axb5 {[%emt 0:03:26]} 30. Rc7 {[%emt 0:00:30]} Qf5 {[%emt 0:00:12]} 31. Kg2 {[%emt 0:00:48]} 1-0

[Event "94th Paris-ch  2019"]
[Site "Paris"]
[Date "2019.07.14"]
[Round "9.19"]
[White "French, Max"]
[Black "Girel, Joseph"]
[Result "1/2-1/2"]
[ECO "D87"]
[WhiteElo "2232"]
[BlackElo "2215"]
[Annotator "NA"]
[PlyCount "54"]
[EventDate "2019.07.07"]
[EventType "swiss"]
[EventCountry "FRA"]
[SourceTitle "playchess.com"]
[Source "ChessBase"]
[SourceQuality "1"]
[TimeControl "5400+30"]

1. d4 {[%emt 0:00:00]} Nf6 {[%emt 0:00:00]} 2. c4 {[%emt 0:00:00]} g6 {[%emt 0:00:45]} 3. Nc3 {[%emt 0:00:00]} d5 {[%emt 0:00:21]} 4. cxd5 {[%emt 0:00:06]} Nxd5 {[%emt 0:00:09]} 5. e4 {[%emt 0:00:04]} Nxc3 {[%emt 0:00:16]} 6. bxc3 {[%emt 0:00:05]} Bg7 {[%emt 0:00:11]} 7. Bc4 {[%emt 0:00:06]} c5 {[%emt 0:00:28]} 8. Ne2 {[%emt 0:00:08]} Nc6 {[%emt 0:00:15]} 9. Be3 {[%emt 0:00:07]} O-O {[%emt 0:00:10]} 10. O-O {[%emt 0:00:07]} b6 {[%emt 0:01:35]} 11. dxc5 {[%emt 0:14:13]} Qc7 {[%emt 0:00:51]} 12. Bf4 {[%emt 0:16:50]} Ne5 {[%emt 0:04:49]} 13. Bd5 {[%emt 0:01:21]} Rb8 {[%emt 0:04:46]} 14. cxb6 {[%emt 0:01:50]} axb6 {[%emt 0:00:20]} 15. Qa4 {[%emt 0:05:56]} e6 {[%emt 0:03:19]} 16. Bb3 {[%emt 0:03:33]} Bb7 {[%emt 0:06:50]} 17. Rfd1 {[%emt 0:06:26]} Ra8 {[%emt 0:01:05]} 18. Qb4 {[%emt 0:03:14]} Ba6 {[%emt 0:02:03]} 19. c4 {[%emt 0:04:54]} Qc6 {[%emt 0:03:20]} 20. Bxe5 {[%emt 0:07:49]} Bxe5 {[%emt 0:00:32]} 21. Rac1 {[%emt 0:04:49]} Qxe4 {[%emt 0:02:31]} 22. Ng3 {[%emt 0:02:07]} Qc6 {[%emt 0:23:17]} 23. c5 {[%emt 0:03:29]} Bb7 {[%emt 0:03:01]} 24. f3 {[%emt 0:00:15]} Bc7 {[%emt 0:02:13]} 25. Kh1 {[%emt 0:06:57]} Rfd8 {[%emt 0:09:26]} 26. Ne4 {[%emt 0:04:18]} Rxd1+ {[%emt 0:02:58]} 27. Rxd1 {[%emt 0:00:10]} Rd8 {[%emt 0:07:49]} 1/2-1/2